[Event "MČR v bleskovém šachu družstev 2019"]
[Site "Teplice, Czech Republic"]
[Date "2019.09.14"]
[Round "3.23"]
[White "Loskot, Petr"]
[Black "Richtr, Zdenek"]
[Result "1/2-1/2"]
[TimeControl "3 mim. + 2 s"]
[WhiteFideId "319570"]
[BlackFideId "301248"]
[WhiteElo "2010"]
[BlackElo "2138"]

1. e4 {[%clk 00:03:02]} {[%emt 00:00:01]} c5 {[%clk 00:03:04]} {[%emt
00:00:01]} 2. Nf3 {[%clk 00:03:02]} {[%emt 00:00:02]} Qc7 {[%clk 00:03:05]} 3.
Nc3 {[%clk 00:03:02]} {[%emt 00:00:02]} e6 {[%clk 00:03:06]} {[%emt 00:00:02]}
4. d4 {[%clk 00:02:57]} {[%emt 00:00:06]} cxd4 {[%clk 00:03:07]} {[%emt
00:00:02]} 5. Nxd4 {[%clk 00:02:58]} a6 {[%clk 00:03:08]} 6. Be2 {[%clk
00:02:57]} {[%emt 00:00:03]} Nc6 {[%clk 00:03:07]} {[%emt 00:00:03]} 7. Nxc6
{[%clk 00:02:55]} {[%emt 00:00:04]} dxc6 {[%clk 00:03:06]} {[%emt 00:00:04]} 8.
O-O {[%clk 00:02:55]} {[%emt 00:00:02]} Nf6 {[%clk 00:03:05]} {[%emt 00:00:03]}
9. Bg5 {[%clk 00:02:50]} {[%emt 00:00:07]} Be7 {[%clk 00:03:02]} {[%emt
00:00:04]} 10. Bf3 {[%clk 00:02:32]} {[%emt 00:00:21]} e5 {[%clk 00:03:02]}
{[%emt 00:00:02]} 11. Bxf6 {[%clk 00:02:30]} {[%emt 00:00:03]} Bxf6 {[%clk
00:03:02]} {[%emt 00:00:02]} 12. Bg4 {[%clk 00:02:31]} O-O {[%clk 00:02:59]}
{[%emt 00:00:06]} 13. Bxc8 {[%clk 00:02:30]} {[%emt 00:00:04]} Raxc8 {[%clk
00:02:59]} {[%emt 00:00:01]} 14. Qg4 {[%clk 00:02:31]} Rcd8 {[%clk 00:02:52]}
{[%emt 00:00:11]} 15. Rad1 {[%clk 00:02:32]} g6 {[%clk 00:02:46]} {[%emt
00:00:07]} 16. Rxd8 {[%clk 00:02:27]} {[%emt 00:00:07]} Rxd8 {[%clk 00:02:47]}
{[%emt 00:00:01]} 17. Rd1 {[%clk 00:02:28]} {[%emt 00:00:01]} Rd4 {[%clk
00:02:23]} {[%emt 00:00:26]} 18. Qf3 {[%clk 00:02:16]} {[%emt 00:00:14]} Bg7
{[%clk 00:02:19]} {[%emt 00:00:06]} 19. Kf1 {[%clk 00:02:15]} {[%emt 00:00:03]}
Qd6 {[%clk 00:02:15]} {[%emt 00:00:06]} 20. Ke1 {[%clk 00:02:14]} {[%emt
00:00:02]} c5 {[%clk 00:02:14]} {[%emt 00:00:05]} 21. Rd3 {[%clk 00:02:02]}
{[%emt 00:00:13]} b5 {[%clk 00:02:11]} {[%emt 00:00:05]} 22. Ne2 {[%clk
00:02:03]} {[%emt 00:00:02]} Rxd3 {[%clk 00:02:08]} {[%emt 00:00:05]} 23. Qxd3
{[%clk 00:02:03]} {[%emt 00:00:01]} Qxd3 {[%clk 00:01:51]} {[%emt 00:00:19]} 24.
cxd3 {[%clk 00:02:04]} Kf8 {[%clk 00:01:47]} {[%emt 00:00:06]} 25. Nc3 {[%clk
00:01:58]} {[%emt 00:00:07]} Ke7 {[%clk 00:01:46]} {[%emt 00:00:04]} 26. Nd5+
1/2-1/2

[Event "MČR v bleskovém šachu družstev 2019"]
[Site "Teplice, Czech Republic"]
[Date "2019.09.14"]
[Round "3.24"]
[White "Hosnedl, Matyas"]
[Black "Meszaros, Ludek"]
[Result "1-0"]
[TimeControl "3 mim. + 2 s"]
[WhiteFideId "390011"]
[BlackFideId "308153"]
[WhiteElo "1852"]
[BlackElo "2070"]

1. e4 {[%clk 00:03:02]} {[%emt 00:00:02]} e5 {[%clk 00:03:03]} {[%emt
00:00:01]} 2. Nf3 {[%clk 00:03:04]} Nc6 {[%emt 00:00:02]} 3. Bb5 a6 {[%clk
00:03:04]} {[%emt 00:00:01]} 4. Ba4 {[%clk 00:03:07]} Nf6 {[%clk 00:03:05]}
{[%emt 00:00:01]} 5. O-O {[%clk 00:03:08]} Be7 {[%clk 00:03:07]} {[%emt
00:00:02]} 6. c3 {[%clk 00:03:04]} {[%emt 00:00:06]} Nxe4 {[%clk 00:03:06]}
{[%emt 00:00:02]} 7. Re1 {[%clk 00:03:01]} {[%emt 00:00:06]} Nc5 {[%clk
00:03:07]} 8. Bxc6 {[%clk 00:03:00]} {[%emt 00:00:04]} dxc6 {[%clk 00:03:06]}
{[%emt 00:00:03]} 9. Nxe5 {[%clk 00:03:00]} {[%emt 00:00:02]} O-O {[%clk
00:03:06]} {[%emt 00:00:03]} 10. d4 {[%clk 00:03:01]} {[%emt 00:00:01]} Ne6
{[%clk 00:03:03]} {[%emt 00:00:04]} 11. Nd2 {[%emt 00:00:09]} Bd6 {[%clk
00:02:55]} {[%emt 00:00:08]} 12. Ndf3 {[%clk 00:02:56]} {[%emt 00:00:02]} f6
{[%clk 00:02:47]} {[%emt 00:00:10]} 13. Nd3 {[%clk 00:02:55]} {[%emt 00:00:03]}
Bd7 {[%clk 00:02:46]} {[%emt 00:00:03]} 14. Qb3 {[%clk 00:02:56]} {[%emt
00:00:01]} Re8 {[%clk 00:02:40]} {[%emt 00:00:08]} 15. Bf4 {[%clk 00:02:30]}
{[%emt 00:00:27]} Kh8 {[%clk 00:02:22]} {[%emt 00:00:21]} 16. Bxd6 {[%clk
00:02:30]} {[%emt 00:00:02]} cxd6 {[%clk 00:02:23]} 17. Qxb7 {[%clk 00:02:25]}
{[%emt 00:00:07]} Qc8 {[%clk 00:02:10]} {[%emt 00:00:14]} 18. Qxc8 {[%clk
00:02:26]} {[%emt 00:00:02]} Rexc8 {[%clk 00:02:10]} {[%emt 00:00:02]} 19. Re2
{[%clk 00:02:22]} {[%emt 00:00:06]} c5 {[%clk 00:02:07]} {[%emt 00:00:05]} 20.
d5 {[%clk 00:02:12]} {[%emt 00:00:12]} Nc7 {[%clk 00:01:55]} {[%emt 00:00:13]}
21. c4 {[%clk 00:02:08]} {[%emt 00:00:07]} Bg4 {[%clk 00:01:48]} {[%emt
00:00:09]} 22. Re7 {[%clk 00:02:00]} {[%emt 00:00:10]} Bxf3 {[%clk 00:01:40]}
{[%emt 00:00:10]} 23. gxf3 {[%clk 00:02:01]} a5 {[%clk 00:01:40]} {[%emt
00:00:02]} 24. Rae1 {[%clk 00:01:53]} {[%emt 00:00:09]} h6 {[%clk 00:01:22]}
{[%emt 00:00:21]} 25. Rd7 {[%clk 00:01:54]} {[%emt 00:00:01]} Na6 {[%clk
00:01:17]} {[%emt 00:00:07]} 26. Ree7 {[%clk 00:01:51]} {[%emt 00:00:05]} Rg8
{[%clk 00:01:16]} {[%emt 00:00:03]} 27. Nf4 {[%clk 00:01:39]} {[%emt 00:00:14]}
Rae8 {[%clk 00:01:10]} {[%emt 00:00:07]} 28. Rxe8 Rxe8 {[%clk 00:01:11]} 29.
Ne6 {[%clk 00:01:36]} {[%emt 00:00:02]} Nb4 {[%clk 00:01:02]} {[%emt 00:00:11]}
30. Rxd6 {[%clk 00:01:25]} {[%emt 00:00:13]} Nxa2 {[%clk 00:00:52]} {[%emt
00:00:12]} 31. Kf1 {[%clk 00:01:14]} {[%emt 00:00:13]} Nc1 {[%clk 00:00:50]}
{[%emt 00:00:03]} 32. Nxc5 {[%clk 00:01:10]} {[%emt 00:00:07]} Rb8 {[%clk
00:00:47]} {[%emt 00:00:04]} 33. Ra6 {[%clk 00:00:59]} {[%emt 00:00:13]} Rxb2
{[%clk 00:00:45]} {[%emt 00:00:05]} 34. d6 {[%clk 00:00:57]} {[%emt 00:00:04]}
Rd2 {[%clk 00:00:36]} {[%emt 00:00:11]} 35. d7 {[%clk 00:00:58]} {[%emt
00:00:01]} Rd1+ {[%clk 00:00:33]} {[%emt 00:00:05]} 36. Kg2 {[%clk 00:01:00]}
Ne2 {[%clk 00:00:24]} {[%emt 00:00:11]} 37. f4 {[%clk 00:00:44]} {[%emt
00:00:18]} Nxf4+ {[%clk 00:00:04]} {[%emt 00:00:22]} 38. Kf3 {[%clk 00:00:45]}
g5 {[%clk 00:00:04]} {[%emt 00:00:03]} 39. Ra8+ {[%clk 00:00:45]} {[%emt
00:00:02]} Kg7 {[%clk 00:00:05]} 40. d8=Q {[%clk 00:00:46]} {[%emt 00:00:02]}
Rxd8 {[%clk 00:00:06]} {[%emt 00:00:01]} 41. Rxd8 {[%clk 00:00:47]} Ng6 {[%emt
00:00:05]} 42. Ra8 {[%clk 00:00:46]} {[%emt 00:00:01]} Ne5+ {[%clk 00:00:05]}
{[%emt 00:00:02]} 43. Ke4 {[%clk 00:00:43]} {[%emt 00:00:04]} Nxc4 {[%clk
00:00:06]} 44. Kd4 {[%clk 00:00:40]} {[%emt 00:00:05]} Nd2 {[%clk 00:00:05]}
{[%emt 00:00:03]} 45. Rxa5 {[%clk 00:00:26]} {[%emt 00:00:16]} Nf3+ {[%clk
00:00:06]} {[%emt 00:00:02]} 46. Ke3 {[%clk 00:00:28]} Nxh2 {[%clk 00:00:07]}
47. f3 {[%clk 00:00:28]} {[%emt 00:00:02]} Kg6 {[%clk 00:00:08]} 48. Ne4 {[%clk
00:00:29]} {[%emt 00:00:01]} Nf1+ {[%clk 00:00:06]} {[%emt 00:00:04]} 49. Kf2
{[%clk 00:00:30]} {[%emt 00:00:01]} Nh2 {[%clk 00:00:06]} 50. Kg2 {[%clk
00:00:30]} {[%emt 00:00:02]} f5 {[%clk 00:00:07]} {[%emt 00:00:02]} 51. Ra6+
{[%clk 00:00:28]} {[%emt 00:00:04]} Kh5 {[%clk 00:00:08]} 52. Nf6+ {[%clk
00:00:29]} Kh4 {[%clk 00:00:09]} {[%emt 00:00:01]} 53. Kxh2 {[%clk 00:00:31]}
g4 {[%clk 00:00:10]} {[%emt 00:00:01]} 54. fxg4 fxg4 {[%clk 00:00:11]} 55. Nxg4
{[%clk 00:00:33]} h5 {[%clk 00:00:11]} {[%emt 00:00:01]} 56. Nf6 {[%clk
00:00:33]} {[%emt 00:00:02]} Kg5 {[%clk 00:00:13]} 57. Nxh5 {[%clk 00:00:34]}
{[%emt 00:00:02]} Kxh5 {[%emt 00:00:01]} 58. Kg3 1-0

[Event "MČR v bleskovém šachu družstev 2019"]
[Site "Teplice, Czech Republic"]
[Date "2019.09.14"]
[Round "3.25"]
[White "Istona, Martin"]
[Black "Vanecek, Jiri"]
[Result "1-0"]
[TimeControl "3 mim. + 2 s"]
[WhiteTitle "FM"]
[WhiteFideId "14923475"]
[BlackFideId "305332"]
[WhiteElo "2078"]
[BlackElo "1999"]

1. e4 {[%clk 00:03:01]} e5 {[%clk 00:03:03]} {[%emt 00:00:02]} 2. Nf3 {[%clk
00:03:02]} {[%emt 00:00:01]} Nc6 {[%clk 00:03:05]} 3. d4 {[%clk 00:03:03]} exd4
{[%clk 00:02:57]} {[%emt 00:00:11]} 4. Nxd4 {[%clk 00:03:04]} Qh4 {[%clk
00:02:54]} {[%emt 00:00:07]} 5. Nc3 {[%clk 00:03:05]} {[%emt 00:00:01]} Bb4
{[%clk 00:02:55]} {[%emt 00:00:02]} 6. Be2 {[%clk 00:03:06]} Qxe4 {[%clk
00:02:12]} {[%emt 00:00:45]} 7. Ndb5 {[%clk 00:03:06]} Bxc3+ {[%clk 00:01:07]}
{[%emt 00:01:07]} 8. bxc3 {[%clk 00:03:07]} {[%emt 00:00:02]} Kd8 {[%clk
00:00:46]} {[%emt 00:00:22]} 9. O-O {[%clk 00:03:07]} {[%emt 00:00:02]} a6
{[%clk 00:00:30]} {[%emt 00:00:18]} 10. Nd4 {[%clk 00:03:08]} Nf6 {[%clk
00:00:31]} {[%emt 00:00:02]} 11. Bf3 {[%clk 00:03:05]} {[%emt 00:00:05]} Qf5
{[%clk 00:00:12]} {[%emt 00:00:22]} 12. Nxf5 {[%clk 00:03:05]} {[%emt
00:00:02]} Ng8 {[%emt 00:00:03]} 1-0

[Event "MČR v bleskovém šachu družstev 2019"]
[Site "Teplice, Czech Republic"]
[Date "2019.09.14"]
[Round "3.26"]
[White "Zacek, Petr"]
[Black "Markovic, Milan"]
[Result "0-1"]
[TimeControl "3 mim. + 2 s"]
[WhiteFideId "320501"]
[BlackFideId "305103"]
[WhiteElo "2009"]
[BlackElo "2113"]

1. d4 {[%clk 00:03:02]} {[%emt 00:00:02]} Nf6 {[%clk 00:03:04]} 2. Nf3 {[%clk
00:03:03]} g6 {[%clk 00:03:05]} {[%emt 00:00:01]} 3. c4 {[%clk 00:03:04]} Bg7
{[%clk 00:03:06]} 4. Nc3 {[%clk 00:03:05]} {[%emt 00:00:01]} d5 {[%clk
00:03:07]} 5. Bf4 {[%clk 00:03:04]} {[%emt 00:00:04]} c5 {[%clk 00:03:05]}
{[%emt 00:00:03]} 6. e3 {[%clk 00:03:05]} {[%emt 00:00:01]} Qa5 {[%clk
00:03:06]} {[%emt 00:00:02]} 7. Qc2 {[%clk 00:03:05]} {[%emt 00:00:02]} Nc6
{[%clk 00:03:02]} {[%emt 00:00:05]} 8. dxc5 {[%clk 00:03:03]} {[%emt 00:00:05]}
dxc4 {[%clk 00:02:57]} {[%emt 00:00:07]} 9. Bxc4 {[%clk 00:03:02]} {[%emt
00:00:03]} Qxc5 {[%clk 00:02:58]} {[%emt 00:00:01]} 10. Bd3 {[%clk 00:02:56]}
{[%emt 00:00:07]} O-O {[%clk 00:02:53]} {[%emt 00:00:07]} 11. O-O {[%clk
00:02:57]} {[%emt 00:00:01]} Bg4 {[%clk 00:02:49]} {[%emt 00:00:07]} 12. a3
{[%clk 00:02:57]} {[%emt 00:00:02]} e5 {[%clk 00:02:37]} {[%emt 00:00:14]} 13.
Bg3 {[%clk 00:02:54]} {[%emt 00:00:05]} Rfe8 {[%clk 00:02:19]} {[%emt
00:00:20]} 14. e4 {[%clk 00:02:55]} {[%emt 00:00:01]} Bxf3 {[%clk 00:02:13]}
{[%emt 00:00:08]} 15. gxf3 {[%clk 00:02:56]} {[%emt 00:00:01]} Nd4 {[%clk
00:02:14]} 16. Qd1 {[%clk 00:02:52]} {[%emt 00:00:06]} Rad8 {[%clk 00:02:14]}
{[%emt 00:00:02]} 17. Rc1 {[%clk 00:02:49]} {[%emt 00:00:04]} Qe7 {[%clk
00:01:56]} {[%emt 00:00:21]} 18. Kg2 {[%clk 00:02:41]} {[%emt 00:00:10]} Bh6
{[%clk 00:01:55]} {[%emt 00:00:03]} 19. Ra1 {[%clk 00:02:33]} {[%emt 00:00:10]}
Nh5 {[%clk 00:01:55]} {[%emt 00:00:02]} 20. Ne2 {[%clk 00:02:19]} {[%emt
00:00:16]} Qf6 {[%clk 00:01:40]} {[%emt 00:00:17]} 21. Ng1 {[%clk 00:02:18]}
{[%emt 00:00:03]} Nf4+ {[%clk 00:01:33]} {[%emt 00:00:09]} 22. Kh1 {[%clk
00:01:42]} {[%emt 00:00:37]} Re6 {[%clk 00:01:03]} {[%emt 00:00:33]} 23. Qe1
{[%clk 00:01:08]} {[%emt 00:00:37]} Nxd3 {[%clk 00:01:01]} {[%emt 00:00:03]} 24.
Qd1 {[%clk 00:01:08]} {[%emt 00:00:02]} Nf4 {[%clk 00:00:53]} {[%emt 00:00:09]}
25. Re1 {[%clk 00:01:02]} {[%emt 00:00:09]} Bf8 {[%clk 00:00:42]} {[%emt
00:00:13]} 26. Rc1 {[%clk 00:00:59]} {[%emt 00:00:05]} Rc6 {[%clk 00:00:39]}
{[%emt 00:00:05]} 27. Qa4 {[%clk 00:00:50]} {[%emt 00:00:11]} a6 {[%clk
00:00:38]} {[%emt 00:00:03]} 28. Rcd1 {[%clk 00:00:34]} {[%emt 00:00:18]} Rdc8
{[%clk 00:00:39]} {[%emt 00:00:02]} 29. Rd2 {[%clk 00:00:33]} {[%emt 00:00:02]}
Nfe6 {[%clk 00:00:39]} {[%emt 00:00:01]} 30. Qa5 {[%clk 00:00:31]} {[%emt
00:00:05]} b5 {[%clk 00:00:30]} {[%emt 00:00:11]} 31. Rd3 {[%clk 00:00:27]}
{[%emt 00:00:07]} Nc5 {[%clk 00:00:24]} {[%emt 00:00:07]} 32. Rc3 {[%clk
00:00:28]} Nb7 {[%clk 00:00:14]} {[%emt 00:00:12]} 33. Qb4 {[%clk 00:00:26]}
{[%emt 00:00:03]} Bxb4 {[%clk 00:00:14]} {[%emt 00:00:03]} 0-1

[Event "MČR v bleskovém šachu družstev 2019"]
[Site "Teplice, Czech Republic"]
[Date "2019.09.14"]
[Round "3.27"]
[White "Srba, Milan"]
[Black "Ruzicka, Milos"]
[Result "1-0"]
[TimeControl "3 mim. + 2 s"]
[WhiteFideId "321575"]
[BlackFideId "368784"]
[WhiteElo "2195"]
[BlackElo "1933"]

1. e4 {[%clk 00:03:01]} {[%emt 00:00:02]} e5 {[%clk 00:03:04]} 2. Nf3 {[%clk
00:03:00]} {[%emt 00:00:03]} Nc6 {[%clk 00:03:06]} 3. d4 {[%clk 00:02:56]}
{[%emt 00:00:06]} exd4 {[%clk 00:03:07]} {[%emt 00:00:02]} 4. Nxd4 {[%clk
00:02:57]} Bc5 {[%clk 00:03:08]} {[%emt 00:00:01]} 5. Nb3 {[%clk 00:02:57]} Bb6
{[%clk 00:03:09]} {[%emt 00:00:01]} 6. Nc3 {[%clk 00:02:57]} {[%emt 00:00:02]}
d6 {[%clk 00:03:11]} 7. Bf4 {[%clk 00:02:57]} {[%emt 00:00:02]} Nf6 {[%clk
00:03:08]} {[%emt 00:00:05]} 8. Qd2 {[%clk 00:02:55]} {[%emt 00:00:04]} Be6
{[%clk 00:03:03]} {[%emt 00:00:07]} 9. O-O-O {[%clk 00:02:52]} {[%emt
00:00:04]} Qd7 {[%clk 00:02:54]} {[%emt 00:00:12]} 10. f3 {[%clk 00:02:44]}
{[%emt 00:00:09]} h6 {[%clk 00:02:45]} {[%emt 00:00:11]} 11. g4 {[%clk
00:02:42]} {[%emt 00:00:04]} O-O-O {[%clk 00:02:43]} {[%emt 00:00:04]} 12. Bb5
{[%clk 00:02:41]} {[%emt 00:00:03]} Bxb3 {[%clk 00:02:35]} {[%emt 00:00:11]} 13.
cxb3 {[%clk 00:02:25]} {[%emt 00:00:17]} Ba5 {[%clk 00:02:26]} {[%emt
00:00:11]} 14. a3 {[%clk 00:01:58]} {[%emt 00:00:29]} a6 {[%clk 00:02:16]}
{[%emt 00:00:12]} 15. Bc4 {[%clk 00:01:43]} {[%emt 00:00:17]} Rhf8 {[%clk
00:02:10]} {[%emt 00:00:09]} 16. b4 {[%clk 00:01:41]} {[%emt 00:00:04]} Bb6
{[%clk 00:02:09]} {[%emt 00:00:02]} 17. Kb1 {[%clk 00:01:39]} {[%emt 00:00:04]}
Nd4 {[%clk 00:01:58]} {[%emt 00:00:13]} 18. Rhf1 {[%clk 00:01:35]} {[%emt
00:00:06]} c5 {[%clk 00:01:56]} {[%emt 00:00:04]} 19. Na2 {[%clk 00:01:03]}
{[%emt 00:00:34]} Qa4 {[%clk 00:01:11]} {[%emt 00:00:47]} 20. Rc1 {[%clk
00:01:01]} {[%emt 00:00:04]} g5 {[%clk 00:00:50]} {[%emt 00:00:24]} 21. Bg3
{[%clk 00:00:53]} {[%emt 00:00:09]} Kb8 {[%clk 00:00:38]} {[%emt 00:00:14]} 22.
bxc5 {[%clk 00:00:45]} {[%emt 00:00:10]} Bxc5 {[%clk 00:00:35]} {[%emt
00:00:05]} 23. Bxa6 {[%clk 00:00:24]} {[%emt 00:00:24]} Qxa6 {[%clk 00:00:13]}
{[%emt 00:00:24]} 24. Rxc5 {[%clk 00:00:18]} {[%emt 00:00:07]} Ne6 {[%clk
00:00:09]} {[%emt 00:00:06]} 25. Rcc1 {[%clk 00:00:17]} {[%emt 00:00:03]} h5
{[%clk 00:00:05]} {[%emt 00:00:06]} 26. Nb4 {[%clk 00:00:18]} {[%emt 00:00:01]}
Qa7 {[%clk 00:00:05]} {[%emt 00:00:03]} 27. Bxd6+ {[%clk 00:00:17]} {[%emt
00:00:02]} Ka8 {[%clk 00:00:04]} {[%emt 00:00:03]} 28. Rfd1 {[%clk 00:00:16]}
{[%emt 00:00:03]} hxg4 {[%clk 00:00:03]} {[%emt 00:00:03]} 29. e5 {[%clk
00:00:17]} {[%emt 00:00:01]} Ne8 {[%emt 00:00:07]} 30. fxg4 {[%emt 00:00:02]}
Nxd6 {[%emt 00:00:01]} 31. exd6 Rd7 {[%emt 00:00:01]} 1-0

[Event "MČR v bleskovém šachu družstev 2019"]
[Site "Teplice, Czech Republic"]
[Date "2019.09.14"]
[Round "3.28"]
[White "Trejbal, Jindrich"]
[Black "Svatos, Jan"]
[Result "1/2-1/2"]
[TimeControl "3 mim. + 2 s"]
[BlackTitle "FM"]
[WhiteFideId "368792"]
[BlackFideId "304174"]
[WhiteElo "1979"]
[BlackElo "2183"]

1. e4 {[%clk 00:03:01]} {[%emt 00:00:02]} e5 {[%clk 00:03:03]} {[%emt
00:00:01]} 2. Nf3 {[%clk 00:03:02]} Nc6 {[%clk 00:03:04]} {[%emt 00:00:02]} 3.
Bc4 {[%clk 00:03:03]} {[%emt 00:00:01]} Be7 {[%clk 00:03:04]} {[%emt 00:00:01]}
4. d4 {[%clk 00:03:03]} {[%emt 00:00:02]} exd4 {[%clk 00:03:04]} {[%emt
00:00:02]} 5. Nxd4 {[%clk 00:03:04]} d6 {[%clk 00:02:57]} {[%emt 00:00:09]} 6.
O-O {[%clk 00:03:05]} {[%emt 00:00:02]} Nf6 {[%clk 00:02:58]} 7. Nc3 {[%clk
00:03:06]} {[%emt 00:00:01]} O-O {[%clk 00:02:57]} {[%emt 00:00:03]} 8. Bg5
{[%clk 00:03:07]} {[%emt 00:00:01]} Ne5 {[%clk 00:02:55]} {[%emt 00:00:04]} 9.
Be2 {[%clk 00:03:07]} {[%emt 00:00:02]} h6 {[%clk 00:02:56]} {[%emt 00:00:02]}
10. Bh4 {[%clk 00:03:06]} {[%emt 00:00:02]} a6 {[%clk 00:02:52]} {[%emt
00:00:06]} 11. h3 {[%clk 00:03:06]} {[%emt 00:00:02]} Ng6 {[%clk 00:02:44]}
{[%emt 00:00:10]} 12. Bg3 {[%clk 00:03:04]} {[%emt 00:00:05]} c5 {[%clk
00:02:39]} {[%emt 00:00:06]} 13. Nf3 {[%clk 00:03:02]} {[%emt 00:00:04]} b5
{[%clk 00:02:38]} {[%emt 00:00:03]} 14. Qd3 {[%clk 00:02:52]} {[%emt 00:00:12]}
c4 {[%clk 00:02:25]} {[%emt 00:00:15]} 15. Qe3 {[%clk 00:02:48]} {[%emt
00:00:06]} Nh5 {[%clk 00:02:20]} {[%emt 00:00:07]} 16. Bh2 {[%clk 00:02:45]}
{[%emt 00:00:06]} Bb7 {[%clk 00:01:54]} {[%emt 00:00:27]} 17. Rad1 {[%clk
00:02:45]} {[%emt 00:00:02]} Qc7 {[%clk 00:01:54]} {[%emt 00:00:02]} 18. Nd5
{[%clk 00:02:46]} Bxd5 {[%clk 00:01:55]} {[%emt 00:00:01]} 19. exd5 {[%clk
00:02:36]} {[%emt 00:00:13]} Nf6 {[%clk 00:01:55]} {[%emt 00:00:01]} 20. Rfe1
{[%clk 00:02:16]} {[%emt 00:00:22]} Rfe8 {[%clk 00:01:56]} {[%emt 00:00:01]} 21.
Qd2 {[%clk 00:02:15]} {[%emt 00:00:03]} Ne4 {[%clk 00:01:53]} {[%emt 00:00:05]}
22. Qc1 {[%clk 00:02:10]} {[%emt 00:00:07]} Bf6 {[%clk 00:01:47]} {[%emt
00:00:08]} 23. Nd4 {[%clk 00:02:11]} Bxd4 {[%clk 00:01:45]} {[%emt 00:00:04]}
24. Rxd4 {[%clk 00:02:11]} {[%emt 00:00:02]} Nc5 {[%clk 00:01:45]} {[%emt
00:00:02]} 25. Bf3 {[%clk 00:01:57]} {[%emt 00:00:17]} Nh4 {[%clk 00:01:32]}
{[%emt 00:00:14]} 26. Bg4 {[%clk 00:01:53]} {[%emt 00:00:06]} Rxe1+ {[%clk
00:01:23]} {[%emt 00:00:11]} 27. Qxe1 {[%clk 00:01:53]} {[%emt 00:00:02]} Ng6
{[%clk 00:01:15]} {[%emt 00:00:10]} 28. f4 {[%clk 00:01:49]} {[%emt 00:00:06]}
Kf8 {[%clk 00:01:13]} {[%emt 00:00:05]} 29. Rd2 {[%clk 00:01:49]} {[%emt
00:00:01]} Re8 {[%clk 00:01:10]} {[%emt 00:00:05]} 30. Re2 {[%clk 00:01:50]}
{[%emt 00:00:01]} Rxe2 {[%clk 00:01:07]} {[%emt 00:00:04]} 31. Qxe2 {[%clk
00:01:50]} {[%emt 00:00:03]} Qe7 {[%clk 00:01:05]} {[%emt 00:00:04]} 32. Kf2
{[%clk 00:01:46]} {[%emt 00:00:05]} Ne4+ {[%clk 00:01:00]} {[%emt 00:00:08]} 33.
Ke1 {[%clk 00:01:43]} {[%emt 00:00:04]} c3 {[%clk 00:00:57]} {[%emt 00:00:07]}
34. b3 {[%clk 00:01:31]} {[%emt 00:00:14]} Nh4 {[%clk 00:00:52]} {[%emt
00:00:06]} 35. Bg1 {[%clk 00:01:21]} {[%emt 00:00:12]} f5 {[%clk 00:00:53]}
{[%emt 00:00:01]} 36. Bf3 {[%clk 00:01:16]} {[%emt 00:00:07]} Nxf3+ {[%clk
00:00:51]} {[%emt 00:00:04]} 37. gxf3 {[%clk 00:01:17]} {[%emt 00:00:02]} Nf6
{[%clk 00:00:50]} {[%emt 00:00:02]} 38. Qxe7+ {[%clk 00:01:10]} {[%emt
00:00:09]} Kxe7 {[%clk 00:00:51]} {[%emt 00:00:01]} 39. Ke2 {[%clk 00:01:10]}
{[%emt 00:00:01]} Nxd5 {[%clk 00:00:52]} {[%emt 00:00:03]} 40. Bd4 {[%clk
00:01:11]} {[%emt 00:00:01]} Nxf4+ {[%clk 00:00:51]} {[%emt 00:00:02]} 41. Kf2
{[%clk 00:01:09]} {[%emt 00:00:04]} b4 {[%clk 00:00:51]} {[%emt 00:00:03]} 42.
Bxg7 {[%clk 00:01:09]} {[%emt 00:00:02]} h5 {[%clk 00:00:51]} {[%emt 00:00:01]}
43. h4 {[%clk 00:01:02]} {[%emt 00:00:09]} Ne6 {[%clk 00:00:51]} {[%emt
00:00:02]} 44. Bh6 {[%clk 00:01:01]} {[%emt 00:00:02]} f4 {[%clk 00:00:49]}
{[%emt 00:00:05]} 45. Ke2 {[%clk 00:01:01]} {[%emt 00:00:03]} Nd4+ {[%clk
00:00:47]} {[%emt 00:00:03]} 46. Kd3 {[%clk 00:00:58]} {[%emt 00:00:04]} Nxf3
{[%clk 00:00:48]} {[%emt 00:00:02]} 47. Bxf4 {[%clk 00:00:59]} {[%emt
00:00:01]} Ke6 {[%clk 00:00:48]} {[%emt 00:00:02]} 48. Kc4 {[%clk 00:00:58]}
{[%emt 00:00:03]} Nxh4 {[%clk 00:00:47]} {[%emt 00:00:03]} 49. Kxb4 {[%clk
00:00:59]} {[%emt 00:00:01]} Ng2 {[%clk 00:00:46]} {[%emt 00:00:03]} 50. Bh2
{[%clk 00:00:59]} {[%emt 00:00:02]} Ne3 {[%clk 00:00:46]} {[%emt 00:00:02]} 51.
Kxc3 {[%clk 00:00:59]} {[%emt 00:00:02]} h4 {[%clk 00:00:47]} 52. Kd3 {[%clk
00:00:59]} {[%emt 00:00:03]} Nd5 {[%clk 00:00:48]} {[%emt 00:00:02]} 53. a3
{[%emt 00:00:03]} h3 {[%clk 00:00:46]} {[%emt 00:00:04]} 54. c4 {[%clk
00:00:59]} {[%emt 00:00:01]} Nf6 {[%clk 00:00:45]} {[%emt 00:00:03]} 55. b4
{[%clk 00:00:56]} {[%emt 00:00:05]} Ng4 {[%clk 00:00:45]} {[%emt 00:00:01]} 56.
Bg3 {[%clk 00:00:51]} {[%emt 00:00:07]} h2 {[%clk 00:00:46]} 57. Bxh2 {[%clk
00:00:53]} {[%emt 00:00:01]} Nxh2 {[%clk 00:00:47]} {[%emt 00:00:01]} 58. b5
{[%clk 00:00:54]} Kd7 {[%clk 00:00:46]} {[%emt 00:00:03]} 59. bxa6 {[%clk
00:00:55]} {[%emt 00:00:02]} Kc6 {[%clk 00:00:47]} 60. Ke4 {[%clk 00:00:54]}
{[%emt 00:00:04]} Ng4 {[%clk 00:00:45]} {[%emt 00:00:04]} 61. a7 {[%clk
00:00:54]} {[%emt 00:00:01]} Kb7 {[%clk 00:00:46]} 62. Kd5 Kxa7 {[%clk
00:00:45]} 63. Kxd6 {[%clk 00:00:56]} Kb7 64. c5 Nf6 {[%clk 00:00:44]} {[%emt
00:00:01]} 65. c6+ {[%clk 00:00:57]} Kc8 {[%clk 00:00:45]} 66. a4 {[%clk
00:00:58]} Ne8+ {[%clk 00:00:45]} {[%emt 00:00:01]} 67. Kc5 {[%clk 00:01:00]}
{[%emt 00:00:02]} Nc7 {[%clk 00:00:46]} 68. Kb6 {[%clk 00:01:01]} {[%emt
00:00:01]} 1/2-1/2